Cogmind - Beta 13 *** ADVENTURER MODE // 2024.04.27 @ 19:11:50 Player: MiNathan Result: Destroyed by G-34 Mercenary with Small Laser Performance ------------- Evolutions (0) 0 Regions Visited (1) 200 Robots Destroyed (29) 145 Value Destroyed (544) 544 Prototype IDs (4) 80 Alien Tech Used (0) 0 Bonus (45) 45 TOTAL SCORE: 1014 Bonus ------- High Alert Combat Kills 45 Cogmind --------- Core Integrity 0/250 Matter 17/300 Energy 100/100 System Corruption 0% Temperature Cool (6) Movement Treading (160) Location -10/Materials Parts ------- > --- POWER (1) -------- (None) > --- PROPULSION (2) --- Improved Treads Improved Treads > --- UTILITY (2) ------ (None) > --- WEAPON (2) ------- Autogun > --- INVENTORY (5) ---- Autogun Grenade Launcher Peak State ------------ > --- POWER ------------ Ion Engine > --- PROPULSION ------- Improved Treads Improved Treads > --- UTILITY ---------- Terrain Scanner > --- WEAPON ----------- Improved EM Shotgun Grenade Launcher > --- INVENTORY -------- Light Assault Rifle Grenade Launcher [Rating: 10] Favorites ----------- Power Ion Engine Engine Ion Engine Propulsion Light Treads Treads Light Treads Utility Terrain Scanner Device Terrain Scanner Weapon Grenade Launcher Energy Gun EM Pulse Gun Ballistic Gun Light Assault Rifle Launcher Grenade Launcher Build | -11 -10 ------- Run | Yrd Mat Slots Evolved . | . . Power . | . . Propulsion . | . . Utility . | . . Weapon . | . . Parts Attached 21 | 5 16 Power 5 | 1 4 Engine 5 | 1 4 Core . | . . Reactor . | . . Propulsion 6 | 2 4 Treads 6 | 2 4 Leg . | . . Wheel . | . . Hover . | . . Flight . | . . Utility 1 | . 1 Device 1 | . 1 Storage . | . . Processor . | . . Hackware . | . . Protection . | . . Artifact . | . . Weapon 9 | 2 7 Energy Gun 2 | 1 1 Energy Cannon . | . . Ballistic Gun 4 | 1 3 Ballistic Cannon . | . . Launcher 3 | . 3 Special Weapon . | . . Impact Weapon . | . . Slashing Weapon . | . . Piercing Weapon . | . . Special Melee Weapon . | . . Unidentified Prototypes 1 | . 1 Parts Lost 4 | . 4 Power 1 | . 1 Propulsion 1 | . 1 Utility 1 | . 1 Weapon 1 | . 1 Highest Loss Streak 3 | . 3 To Critical Strikes . | . . Average Slot Usage (%) 83 | . 83 Engine 13 | . 13 Treads 27 | . 27 Device 13 | . 13 Ballistic Gun 14 | . 14 Launcher 13 | . 13 Naked Turns . | . . Heaviest Build 12 | 6 12 Greatest Support 46 | 40 46 Greatest Overweight (x) . | . . Average Overweight (x) . | . . Largest Inventory Capacity 5 | 5 5 Average Capacity 5 | 5 5 Most Carried 5 | 5 5 Average Carried 1 | . 1 Final Capacity 5 | 5 5 Final Carried 2 | . 2 Class Distribution -------------------- 98% | Mutant Dominant Class ---------------- Mutant | -10/Materials Resources | -11 -10 ----------- Run | Yrd Mat Matter Collected 474 | 191 283 Remotely . | . . Salvage Created 509 | . 509 Parts 44 | . 44 Haulers Intercepted 1 | . 1 Recyclers Shooed 1 | . 1 Parts Field Recycled . | . . Retrieved Matter . | . . Parts Self-Destructed . | . . Prevented . | . . Kills | -11 -10 ------- Run | Yrd Mat Combat Hostiles Destroyed 17 | . 17 Guns 3 | . 3 AOE 14 | . 14 Classes Destroyed 8 | . 8 Worker 4 | . 4 Builder 2 | . 2 Tunneler 1 | . 1 Hauler 1 | . 1 Recycler 1 | . 1 Watcher 3 | . 3 Swarmer 6 | . 6 Grunt 11 | . 11 Best Kill Streak 10 | . 10 Combat Bots Only 6 | . 6 Max Kills in Single Turn 2 | . 2 Gunslinging . | . . Exploded 2 | . 2 Melee . | . . Uniques/NPCs Destroyed . | . . Combat | -11 -10 -------- Run | Yrd Mat Hostile Shots Fired 153 | . 153 Missed 50 | . 50 Damage Taken 1054 | . 1054 Core 255 | . 255 Absorbed by Shields . | . . Ignored by Resistances 333 | . 333 Core Remaining (%) 100 | 100 . Volleys Fired 46 | . 46 Largest 2 | . 2 Hottest 50 | . 50 Shots Fired 79 | . 79 Gun 46 | . 46 Cannon . | . . Launcher 33 | . 33 Special . | . . Kinetic 46 | . 46 Thermal . | . . Explosive 33 | . 33 Electromagnetic . | . . Robot Hit Streak 12 | . 12 Robot Miss Streak 2 | . 2 Penetration Max . | . . Secondary Targets . | . . Shots Hit Robots 53 | . 53 Core Hits 47 | . 47 Critical Kills . | . . Critical Parts Destroyed . | . . Critical Strikes . | . . Melee Attacks . | . . Impact . | . . Slashing . | . . Piercing . | . . Sneak Attacks . | . . Combat Hostiles . | . . Follow-up Attacks . | . . Damage Inflicted 2012 | . 2012 Guns 257 | . 257 Cannons . | . . Explosions 1741 | . 1741 Melee . | . . Ramming 14 | . 14 Kinetic 257 | . 257 Thermal . | . . Explosive 1741 | . 1741 Electromagnetic . | . . Impact . | . . Slashing . | . . Piercing . | . . Highest Corruption . | . . Average Corruption . | . . Corruption Purged . | . . Corruption Blocked . | . . Overload Shots . | . . Overflow Damage 54 | . 54 Projectiles . | . . Explosions 54 | . 54 Melee . | . . Knockbacks . | . . Impact . | . . Kinetic . | . . Secondary . | . . Self-Inflicted Damage 109 | . 109 Shots 7 | . 7 Rammed 5 | . 5 Targets Rammed 5 | . 5 Kicked . | . . Crushed . | . . Highest Temperature 32 | . 32 Average Temperature 9 | . 9 Received Heat Transfer 552 | . 552 Siege Activations . | . . Robots Corrupted . | . . Combat Hostiles . | . . Parts Fried . | . . Impact Corruptions . | . . Robots Melted . | . . Combat Hostiles . | . . Parts Melted . | . . Heat Transferred . | . . Parts Sabotaged . | . . Parts Stolen . | . . Parts Stripped . | . . Power Chain Reactions . | . . Alert | -11 -10 ------- Run | Yrd Mat Peak Influence 489 | . 489 Initial . | . . Average 168 | . 172 Maximum Alert Level 2 | . 2 Low Security (%) 70 | 100 69 Level 1 14 | . 14 Level 2 15 | . 15 Level 3 . | . . Level 4 . | . . Level 5 . | . . High Security . | . . Max Security . | . . Squads Dispatched 5 | . 5 Investigation 5 | . 5 Extermination . | . . Reinforcement . | . . Assault . | . . Garrison . | . . Intercept . | . . Searches Triggered . | . . Construction Impeded . | . . Haulers Reinforced . | . . Active Scanning Responses . | . . Cargo Convoy Interrupts . | . . Stealth | -11 -10 --------- Run | Yrd Mat Distress Signals 1 | . 1 Communications Jammed . | . . Distress Signals . | . . Times Spotted 27 | . 27 Peak Tracking Total 6 | . 6 Tactical Retreats 1 | . 1 Traps | -11 -10 ------- Run | Yrd Mat Traps Triggered 7 | . 7 Indirectly . | . . Trap Hack Attempts . | . . Triggered . | . . Disarmed . | . . Reprogrammed . | . . Reused . | . . Traps Extracted . | . . Installed . | . . Triggered . | . . Machines | -11 -10 ---------- Run | Yrd Mat Machines Disabled 2 | . 2 Max in Single Turn 1 | . 1 Machines Repaired . | . . Machines Dismantled . | . . Machines Sabotaged . | . . Overloaded Fab Kills . | . . Hacking | -11 -10 --------- Run | Yrd Mat Machines Accessed 10 | . 10 Terminals 8 | . 8 Fabricators . | . . Repair Stations . | . . Recycling Units 2 | . 2 Scanalyzers . | . . Garrison Access . | . . Total Hacks 45 | . 45 Successful 31 | . 31 Failed 14 | . 14 Catastrophic 2 | . 2 Database Lockouts . | . . Manual . | . . Terminals 37 | . 37 Fabricators . | . . Repair Stations . | . . Recycling Units 8 | . 8 Scanalyzers . | . . Garrison Access . | . . Terminal Hacks 23 | . 23 Record 9 | . 9 Prototype ID Bank 3 | . 3 Branch Access Points 1 | . 1 Emergency Access Points 2 | . 2 Scanalyzer Index 1 | . 1 Unreport Threat 1 | . 1 Dispatch Records 1 | . 1 Security Status 1 | . 1 Reinforcement Status 1 | . 1 Recall Reinforcements 1 | . 1 Hauler Manifests 1 | . 1 Zone Layout 1 | . 1 Fabricator Hacks . | . . Repair Station Hacks . | . . Recycling Unit Hacks 8 | . 8 Recycle Component 3 | . 3 Process 2 | . 2 Retrieve Matter 3 | . 3 Scanalyzer . | . . Garrison Access Hacks . | . . Unauthorized Hacks . | . . Terminals . | . . Fabricators . | . . Repair Stations . | . . Recycling Units . | . . Scanalyzers . | . . Garrison Access . | . . Data Cores Recovered . | . . Used . | . . Hacking Detections 10 | . 10 Full Trace Events 8 | . 8 Feedback Events . | . . Feedback Blocked . | . . Robot Schematics Acquired . | . . Robots Built . | . . Authchips . | . . Time . | . . Total Robot Build Rating . | . . Part Schematics Acquired . | . . Parts Built . | . . Authchips . | . . Time . | . . Total Part Build Rating . | . . Parts Repaired . | . . Time . | . . Parts Recycled 3 | . 3 Recycled Matter 551 | . 551 Retrieved Matter . | . . Retrieved Components . | . . Parts Scanalyzed . | . . Part Schematics Acquired . | . . Parts Damaged . | . . Bothacking | -11 -10 ------------ Run | Yrd Mat Used RIF Installer . | . . Robots Hacked . | . . Non-combat . | . . Combat . | . . Robot Hacks Applied . | . . Relay Couplers Released . | . . Fabnet Peak Effective % . | . . Robots Rewired . | . . Allies Hacked . | . . Hacks Repelled . | . . Allies | -11 -10 -------- Run | Yrd Mat Total Allies . | . . Largest Group . | . . Highest-Rated Group . | . . Highest-Rated Ally . | . . Total Orders . | . . Ally Attacks . | . . Total Damage . | . . Kills . | . . Allies Corrupted . | . . Allies Melted . | . . Intel | -11 -10 ------- Run | Yrd Mat Robot Analysis Total . | . . Derelict Logs Recovered . | . . Drone Launches . | . . Drone Recoveries . | . . Exploration | -11 -10 ------------- Run | Yrd Mat Turns Passed 1875 | 43 1832 Spaces Moved 1000 | 26 974 Core 7 | 7 . Treads 993 | 19 974 Legs . | . . Wheels . | . . Hover . | . . Flight . | . . Fastest Speed 50 | 50 160 Average Speed 159 | 130 160 Slowest Speed 160 | 160 160 Overloaded Moves . | . . Propulsion Burnouts . | . . Robots Hopped . | . . Cave-ins Triggered . | . . Exploration Rate (%) 46 | 4 89 Regions Visited 1 Branch Regions . Pre-discovered Areas . | . . Known Exits Taken . | . . Unknown Exits Taken 1 | 1 . Scrap Searched . | . . Spaces Dug 5 | . 5 Terrain Destroyed 167 | . 167 Melee . | . . Projectile . | . . AOE 167 | . 167 Terrain Rammed . | . . Walls Destroyed . | . . Machines Disabled . | . . Actions | -11 -10 --------- Run | Yrd Mat Total 1209 | 35 1174 Wait 102 | . 102 Move 999 | 25 974 Hop . | . . Pick Up 24 | 5 19 Fast Attach . | . . Attach 8 | 5 3 Detach . | . . Swap 13 | . 13 Drop 12 | . 12 Fire 46 | . 46 Melee . | . . Ram . | . . Kick . | . . Crush 5 | . 5 Escape Stasis . | . . Rewire . | . . Trap . | . . Miscellaneous . | . . Route ------- -11/Scrapyard -10/Materials (discovered 5 exits: [*Mat x3] / *Min x2) History --------- Turn | Location | Event 2 | -11/Scrapyard | Met Revision 17 6 | -11/Scrapyard | Discovered new exit (range 16) 44 | -11/Scrapyard | Entered Materials 310 | -10/Materials | Build established: Mutant 424 | -10/Materials | Identified exit to Mines 993 | -10/Materials | Discovered new exit (range 16) 1532 | -10/Materials | Discovered new exit (range 16) 1715 | -10/Materials | Discovered new exit (range 7) 1812 | -10/Materials | Core integrity fell below 50% 1851 | -10/Materials | Core integrity fell below 20% 1876 | -10/Materials | Destroyed by G-34 Mercenary with Small Laser Last Messages --------------- Lgt. Armor Plating (45) Lgt. Assault Rifle (22) Huge Storage Unit (300) ALERT: Suspicious activity at Recycling Unit M002. Dispatching Investigation squad. Recycling unit begins matter transfer process. Slammed into G-34 Mercenary. Triggered Alarm Trap. An alarm sounds. ALERT: Alarm triggered, dispatching investigation squad. Slammed into G-34 Mercenary. Ion Engine destroyed. Grenade Launcher destroyed. Triggered Explosive Trap. An explosion rips through the floor. Terrain Scanner destroyed. Connecting with Recycling Unit... >>Recycling(Process) Analyzing inventory... Map ----- +----------------------------------------------------+ | | | | | | | ???????????????????????????????????????????? | | ??????????????????????????????????????###### | | ??????????????????????????????????????# | | ??????????????????????????????????????# | | ??????????????????????????????????#???# | | ??????????????????????????????????##### | | ??????????????????????????????????# # | | ???????????????????????????????#??# < # | | ??????????????????????????????????# # | | ??????????????????????????????????# + | | ????????????????????????????????#?# ###### | | ????????????????????????????#?????# #????? | | ??????????????????????????????????# #???#? | | ????????????????????????????#?????# ###### | | ??????????????????????????????????# # || | | ?????????>????????????????????????# # || | | ???????????????????????????#??????# + | | | ????????????????????????????????### # | | ????????????????#########????#????# #/ | | ????????????????# """ #?????##### # | | ????????????????# "Y" #??##?#[[ ###### | | ??????????????? # #??#??#[ # | | ????????????????# @ = #?????#[[ # | | ????????????????# g #??##?#[[ + | | ????????????#???# """g #?????#= ^# " | | ????????????# ??# """ #??#??#= # """ | | ????????????# ?# """g #?????##### # """ | | ????????????# ?# gg #????#???## # """ | | ????????????# #ag! #####????## # "" | | ????????????# # #???#?????# # | | ????????????# ## ###?#??????## ###### | | ????????????+ ^ ^ #??#???#???## ##???# | | ????????????# #??#??#?#??## ##?#?# | | ????????????# #?#????#???## ###### | | ????????????##### ##??########## ###### | | ?????????? ??#??# ######## # ## # | | ????????????????# # # # ## | | ????????????????# # "" # + # #### | | ???????????#???## # Y" # """ # | | ??????????#?????# # "" # """ # | | ????????##?#??#?# # # """ # | | ????????????????# + ############ ## | | ??????########### # ##?##??????# # | | ??????# """ """ # # #??#???#???# # | | ??????# """ """ # ####/####?#?#????## ## | | ??????# """ """ # #??#?#?#?????# # | | ??????# + ####?????#???# #? | +----------------------------------------------------+ Best States ------------- Heat Dissipation 25 Energy Generation 10 Energy Capacity 250 Matter Stores 241 Matter Capacity 300 Sight Range 16 Terrain Scan Range 14 Terrain Scan Density 10 Resistance: KI 20 Resistance: TH 20 Resistance: EX 20 Resistance: EM 20 Resistance: I 20 Resistance: S 20 Resistance: P 20 Evasion (%) 50 Recoil Reduction 2 Offensive Hacking 10 Item Schematics ----------------- None Robot Schematics ------------------ None Fabricated ------------ Nothing Alien Tech Used ----------------- None Achievements -------------- None Challenges ------------ None Game ------ Seed HelicalSiegeFalx Manual? 0 Play Time 00:17:05 Cumulative 2.3 hours Start 2024.04.27 @ 17:59:58 End 2024.04.27 @ 19:11:50 Sessions 1 Manual Loads 0 Difficulty Adventurer Special Mode None Game No. 8 Rogue 0 Adventurer 8 Explorer 0 Win Type - Total 0 Types 0/0/0/0/0/0/0/0/0 Lore% 8 Gallery% 8 Achievement% 10 Wizard Run 0 Options --------- Layout 1 ASCII 0 Keyboard 0 Movement Mouse Keybinds 0 Fullscreen 1 Font 24/Smallcaps Map View 50x35 Zoom Use 0% Tactical HUD 0 Map Filters NONE Filters NONE Steam 1 RUN: 3491e3f1-c025-4500-bf7e-c606eec79bd6